fUST/lending_fUST_20240502
["ID","MTS","AMOUNT","RATE_DAILY","PERIOD"]
[325212947,1714590641146,-241.92146026,0.00052876,120]
[325212948,1714590641157,-500.0,0.00052876,120]
[325212949,1714590641167,-500.0,0.00052876,120]
[325212950,1714590641178,-1486.05,0.00052876,120]
[325212951,1714590641189,-500.0,0.00052876,120]
[325212952,1714590641200,-500.0,0.00052876,120]
[325212953,1714590641211,-500.0,0.00052876,120]
[325212954,1714590641223,-945.1,0.00052876,120]
[325212955,1714590641235,-501.33149807,0.00052876,120]
[325212956,1714590641250,-500.0,0.00052876,120]
[325212957,1714590641261,-500.0,0.00052876,120]
[325212958,1714590641273,-500.0,0.00052876,120]
[325212959,1714590641284,-300.0,0.00052876,7]
[325212960,1714590641296,-500.54506639,0.00052876,120]
[325212961,1714590641307,-528.52,0.00052876,120]
[325212962,1714590641318,-500.0,0.00052876,120]
[325212963,1714590641335,-500.0,0.00052876,120]
[325212964,1714590641346,-529.00492174,0.00052876,120]
[325212965,1714590641357,-500.0,0.00052876,120]
[325212966,1714590641370,-500.0,0.00052876,120]
[325212967,1714590641382,-500.0,0.00052876,120]
[325212968,1714590641393,-500.0,0.00052876,120]
[325212969,1714590641404,-500.0,0.00052876,3]
[325212970,1714590641415,-500.0,0.00052876,120]
[325212971,1714590641426,-500.0,0.00052876,120]
[325212972,1714590641437,-500.0,0.00052876,120]
[325212973,1714590641447,-636.36539851,0.00052876,120]
[325212974,1714590641458,-500.0,0.00052876,120]
[325212975,1714590641469,-3195.0,0.00052876,120]
[325212976,1714590641480,-500.0,0.00052876,120]
[325212977,1714590641492,-503.04391728,0.00052876,120]
[325212978,1714590641503,-500.0,0.00052876,120]
[325212979,1714590641514,-906.16,0.00052876,120]
[325212980,1714590641525,-550.08,0.00052876,120]
[325212981,1714590641535,-1114.78,0.00052876,120]
[325212982,1714590641546,-500.0,0.00052876,120]
[325212983,1714590641556,-500.0,0.00052876,120]
[325212984,1714590641567,-3211.91,0.00052876,120]
[325212985,1714590641581,-500.0,0.00052876,120]
[325212986,1714590641592,-500.0,0.00052876,120]
[325212987,1714590641602,-500.0,0.00052876,120]
[325212988,1714590641613,-500.0,0.00052876,120]
[325212989,1714590641623,-500.0,0.00052876,120]
[325212990,1714590641634,-500.0,0.00052876,120]
[325212991,1714590641645,-500.0,0.00052876,120]
[325212992,1714590641656,-746.4,0.00052876,120]
[325212993,1714590641666,-500.0,0.00052876,120]
[325212994,1714590641677,-500.0,0.00052876,120]
[325212995,1714590641688,-500.0,0.00052876,120]
[325212996,1714590641698,-500.0,0.00052876,120]
[325212997,1714590641709,-616.87,0.00052876,120]
[325212998,1714590641719,-500.0,0.00052876,120]
[325212999,1714590641730,-500.0,0.00052876,120]
[325213000,1714590641740,-500.0,0.00052876,120]
[325213001,1714590641751,-512.92933634,0.00052876,120]
[325213002,1714590641762,-500.0,0.00052876,120]
[325213003,1714590641772,-500.0,0.00052876,120]
[325213004,1714590641783,-693.46,0.00052876,120]
[325213005,1714590641794,-769.33,0.00052876,120]
[325213006,1714590641804,-500.0,0.00052876,120]
[325213007,1714590641815,-500.0,0.00052876,120]
[325213008,1714590641826,-500.0,0.00052876,120]
[325213009,1714590641840,-500.0,0.00052876,120]
[325213010,1714590641850,-500.0,0.00052876,120]
[325213011,1714590641862,-409.62844586,0.00052876,120]
[325213012,1714590641872,-500.0,0.00052876,120]
[325213013,1714590641883,-500.0,0.00052876,120]
[325213014,1714590641894,-500.0,0.00052876,120]
[325213015,1714590641905,-500.0,0.00052876,120]
[325213016,1714590641915,-500.0,0.00052876,120]
[325213017,1714590641928,-500.0,0.00052876,120]
[325213018,1714590641939,-500.0,0.00052876,120]
[325213019,1714590641950,-500.0,0.00052876,120]
[325213020,1714590641961,-460.30168021,0.00052876,120]
[325213021,1714590641972,-500.0,0.00052876,120]
[325213022,1714590641983,-500.0,0.00052876,120]
[325213023,1714590641994,-500.0,0.00052876,120]
[325213024,1714590642005,-710.14,0.00052876,120]
[325213025,1714590642015,-500.0,0.00052876,120]
[325213026,1714590642026,-595.93407744,0.00052876,120]
[325213027,1714590642038,-500.0,0.00052876,120]
[325213028,1714590642048,-500.0,0.00052876,120]
[325213029,1714590642060,-500.0,0.00052876,120]
[325213030,1714590642072,-486.96603842,0.00052876,120]
[325213031,1714590642088,-500.0,0.00052876,120]
[325213032,1714590642099,-500.0,0.00052876,120]
[325213033,1714590642110,-687.72,0.00052876,120]
[325213034,1714590642120,-500.0,0.00052876,120]
[325213035,1714590642131,-500.0,0.00052876,120]
[325213036,1714590642141,-600.0,0.00052876,120]
[325213037,1714590642151,-1028.82,0.00052876,120]
[325213038,1714590642161,-865.76,0.00052876,120]
[325213039,1714590642171,-500.0,0.00052876,120]
[325213040,1714590642182,-500.0,0.00052876,120]
[325213041,1714590642195,-500.0,0.00052876,120]
[325213042,1714590642206,-500.0,0.00052876,120]
[325213043,1714590642217,-500.0,0.00052876,120]
[325213044,1714590642227,-500.0,0.00052876,120]
[325213045,1714590642238,-500.0,0.00052876,120]
[325213046,1714590642250,-500.0,0.00052876,120]
[325213047,1714590642260,-610.74812381,0.00052876,120]
[325213048,1714590642271,-500.0,0.00052876,120]
[325213049,1714590642281,-500.0,0.00052876,120]
[325213050,1714590642291,-1010.85,0.00052876,120]
[325213051,1714590642301,-183.54657057,0.00052876,120]
[325213052,1714590642311,-500.0,0.00052876,120]
[325213053,1714590642322,-10948.05,0.00052876,120]
[325213054,1714590642336,-503.62873282,0.00052876,120]
[325213055,1714590642351,-500.0,0.00052876,120]
[325213056,1714590642361,-500.0,0.00052876,120]
[325213057,1714590642371,-500.0,0.00052876,120]
[325213058,1714590642382,-500.0,0.00052876,120]
[325213059,1714590642392,-1009.36,0.00052876,120]
[325213060,1714590642402,-500.0,0.00052876,120]
[325213061,1714590642413,-644.36,0.00052876,120]
[325213062,1714590642424,-500.0,0.00052876,120]
[325213063,1714590642434,-500.0,0.00052876,120]
[325213064,1714590642443,-500.0,0.00052876,120]
[325213065,1714590642453,-1003.72,0.00052876,120]
[325213066,1714590642462,-1065.34,0.00052876,120]
[325213067,1714590642471,-500.0,0.00052876,120]
[325213068,1714590642481,-505.32168027,0.00052876,120]
[325213069,1714590642724,-500.0,0.00052876,120]
[325213070,1714590642739,-500.0,0.00052876,120]
[325213071,1714590642748,-500.0,0.00052876,120]
[325213072,1714590642757,-500.0,0.00052876,120]
[325213073,1714590642766,-1017.66,0.00052876,120]
[325213074,1714590642776,-501.10882373,0.00052876,120]
[325213075,1714590642785,-837.17,0.00052876,2]
[325213076,1714590642795,-698.14,0.00052876,120]
[325213077,1714590642804,-835.23,0.00052876,120]
[325213078,1714590642814,-500.0,0.00052876,120]
[325213079,1714590642823,-500.0,0.00052876,120]
[325213080,1714590642836,-500.0,0.00052876,120]
[325213081,1714590642845,-900.9,0.00052876,120]
[325213082,1714590642854,-647.64,0.00052876,120]
[325213083,1714590642863,-884.74,0.00052876,120]
[325213084,1714590642872,-500.0,0.00052876,120]
[325213085,1714590642881,-500.0,0.00052876,7]
[325213086,1714590642890,-445.77084145,0.00052876,120]
[325213090,1714590642899,-282.03850126,0.00052876,120]
[325213093,1714590642909,-500.0,0.00052876,120]
[325213096,1714590642918,-500.0,0.00052876,120]
[325213099,1714590642927,-500.0,0.00052876,5]
[325213102,1714590642936,-642.39,0.00052876,120]
[325213105,1714590642946,-500.0,0.00052876,120]
[325213108,1714590642956,-500.0,0.00052876,120]
[325213110,1714590642965,-500.0,0.00052876,120]
[325213112,1714590642974,-7693.02,0.00052876,120]
[325213114,1714590642984,-500.0,0.00052876,20]
[325213116,1714590642993,-500.0,0.00052876,120]
[325213118,1714590643003,-533.04000945,0.00052876,120]
[325213120,1714590643012,-500.0,0.00052876,120]
[325213122,1714590643022,-228.9410275,0.00052876,120]
[325213124,1714590643031,-500.0,0.00052876,120]
[325213126,1714590643040,-500.0,0.00052876,120]
[325213128,1714590643050,-500.0,0.00052876,120]
[325213129,1714590643059,-500.0,0.00052876,120]
[325213130,1714590643069,-500.0,0.00052876,120]
[325213131,1714590643078,-803.62,0.00052876,120]
[325213134,1714590643097,-841.27,0.00052876,120]
[325213136,1714590643107,-1812.87,0.00052876,120]
[325213138,1714590643117,-500.0,0.00052876,120]
[325213140,1714590643127,-261.16178485,0.00052876,120]
[325213142,1714590643137,-500.0,0.00052876,120]
[325213144,1714590643147,-561.35397468,0.00052876,120]
[325213146,1714590643156,-500.0,0.00052876,120]
[325213148,1714590643166,-838.92,0.00052876,120]
[325213150,1714590643175,-529.41612635,0.00052876,120]
[325213152,1714590643184,-500.0,0.00052876,120]
[325213154,1714590643194,-500.0,0.00052876,120]
[325213156,1714590643203,-500.0,0.00052876,120]
[325213158,1714590643213,-1089.88,0.00052876,21]
[325213161,1714590643224,-500.0,0.00052876,120]
[325213165,1714590643234,-500.0,0.00052876,120]
[325213169,1714590643243,-500.0,0.00052876,120]
[325213172,1714590643254,-500.0,0.00052876,120]
[325213175,1714590643264,-1408.48,0.00052876,120]
[325213177,1714590643274,-500.0,0.00052876,120]
[325213179,1714590643284,-500.0,0.00052876,120]
[325213181,1714590643295,-500.0,0.00052876,120]
[325213183,1714590643304,-168.83582934,0.00052876,120]
[325213186,1714590643314,-500.0,0.00052876,120]
[325213187,1714590643326,-500.0,0.00052876,120]
[325213188,1714590643346,-630.35,0.00052876,120]
[325213189,1714590643355,-500.0,0.00052876,120]
[325213190,1714590643365,-500.0,0.00052876,120]
[325213191,1714590643375,-500.0,0.00052876,120]
[325213194,1714590643384,-687.42,0.00052876,120]
[325213196,1714590643393,-1030.87,0.00052876,120]
[325213197,1714590643403,-3633.8,0.00052876,120]
[325213198,1714590643412,-501.62757547,0.00052876,120]
[325213199,1714590643422,-2134.0,0.00052876,2]
[325213200,1714590643431,-500.0,0.00052876,60]
[325213201,1714590643441,-500.23716366,0.00052876,120]
[325213202,1714590643450,-778.92,0.00052876,7]
[325213203,1714590643459,-500.0,0.00052876,120]
[325213204,1714590643468,-500.0,0.00052876,120]
[325213205,1714590643477,-501.20557834,0.00052876,120]
[325213206,1714590643486,-500.0,0.00052876,120]
[325213207,1714590643496,-1916.12,0.00052876,120]
[325213208,1714590643505,-558.33,0.00052876,120]
[325213209,1714590643514,-500.0,0.00052876,120]
[325213210,1714590643524,-273.91594634,0.00052876,120]
[325213211,1714590643533,-571.93,0.00052876,120]
[325213212,1714590643543,-544.83,0.00052876,120]
[325213213,1714590643552,-500.0,0.00052876,120]
[325213214,1714590643562,-977.94,0.00052876,120]
[325213215,1714590643571,-500.0,0.00052876,120]
[325213216,1714590643581,-500.0,0.00052876,120]
[325213217,1714590643594,-1196.74,0.00052876,120]
[325213218,1714590643603,-500.0,0.00052876,120]
[325213219,1714590643612,-500.0,0.00052876,120]
[325213220,1714590643621,-1032.6,0.00052876,120]
[325213221,1714590643630,-500.0,0.00052876,120]
[325213222,1714590643639,-500.0,0.00052876,120]
[325213223,1714590643649,-1059.26,0.00052876,120]
[325213224,1714590643658,-533.59,0.00052876,120]
[325213225,1714590643668,-500.0,0.00052876,120]
[325213226,1714590643677,-500.0,0.00052876,120]
[325213227,1714590643687,-707.13,0.00052876,120]
[325213228,1714590643696,-500.0,0.00052876,120]
[325213229,1714590643706,-500.0,0.00052876,120]
[325213230,1714590643715,-801.68,0.00052876,120]
[325213231,1714590643724,-762.3,0.00052876,120]
[325213233,1714590643734,-502.71,0.00052876,120]
[325213235,1714590643743,-500.0,0.00052876,120]
[325213236,1714590643753,-500.0,0.00052876,120]
[325213237,1714590643762,-500.0,0.00052876,120]
[325213238,1714590643772,-500.0,0.00052876,120]
[325213239,1714590643781,-500.0,0.00052876,120]
[325213240,1714590643790,-283.30929255,0.00052876,120]
[325213241,1714590643800,-500.0,0.00052876,120]
[325213242,1714590643809,-500.0,0.00052876,120]
[325213243,1714590643818,-500.0,0.00052876,120]
[325213244,1714590643828,-187.36688319,0.00052876,120]
[325213245,1714590643841,-500.0,0.00052876,120]
[325213246,1714590643852,-500.0,0.00052876,120]
[325213247,1714590643861,-500.0,0.00052876,120]
[325213248,1714590643871,-500.0,0.00052876,120]
[325213249,1714590643881,-5923.71,0.00052876,120]
[325213250,1714590643891,-500.0,0.00052876,120]
[325213251,1714590643900,-4672.9,0.00052876,120]
[325213252,1714590643910,-500.0,0.00052876,120]
[325213253,1714590643919,-500.0,0.00052876,120]
[325213254,1714590643929,-500.0,0.00052876,120]
[325213255,1714590643938,-655.29,0.00052876,120]
[325213256,1714590643948,-500.0,0.00052876,120]
[325213257,1714590643957,-500.0,0.00052876,120]
[325213259,1714590643966,-500.0,0.00052876,120]
[325213261,1714590643976,-500.0,0.00052876,120]
[325213263,1714590643985,-173.99,0.00052876,120]
[325213265,1714590643994,-14308.02,0.00052876,120]
[325213266,1714590644003,-1192.0,0.00052876,120]
[325213267,1714590644012,-555.29371673,0.00052876,120]
[325213268,1714590644022,-500.0,0.00052876,120]
[325213269,1714590644032,-540.12,0.00052876,120]
[325213270,1714590644041,-500.0,0.00052876,120]
[325213271,1714590644051,-500.0,0.00052876,120]
[325213273,1714590644061,-500.0,0.00052876,120]
[325213275,1714590644070,-542.97,0.00052876,120]
[325213277,1714590644082,-500.0,0.00052876,120]
[325213278,1714590644092,-500.0,0.00052876,120]
[325213279,1714590644101,-500.0,0.00052876,120]
[325213280,1714590644110,-938.23,0.00052876,120]
[325213281,1714590644120,-500.0,0.00052876,120]
[325213282,1714590644130,-500.0,0.00052876,120]
[325213283,1714590644140,-500.0,0.00052876,120]
[325213284,1714590644149,-675.97,0.00052876,120]
[325213286,1714590644158,-500.0,0.00052876,120]
[325213287,1714590644169,-500.0,0.00052876,120]
[325213288,1714590644178,-2214.82,0.00052876,120]
[325213289,1714590644187,-507.12984672,0.00052876,120]
[325213290,1714590644196,-1552.37,0.00052876,30]
[325213291,1714590644206,-1163.11,0.00052876,120]
[325213292,1714590644216,-873.13,0.00052876,120]
[325213293,1714590644226,-724.44,0.00052876,120]
[325213294,1714590644235,-500.0,0.00052876,120]
[325213295,1714590644244,-500.0,0.00052876,120]
[325213296,1714590644253,-500.0,0.00052876,120]
[325213297,1714590644262,-500.0,0.00052876,120]
[325213298,1714590644272,-2956.14,0.00052876,120]
[325213299,1714590644281,-500.0,0.00052876,120]
[325213300,1714590644290,-563.88,0.00052876,120]
[325213301,1714590644299,-500.0,0.00052876,120]
[325213302,1714590644308,-521.64,0.00052876,120]
[325213303,1714590644317,-500.0,0.00052876,120]
[325213304,1714590644327,-801.18,0.00052876,120]
[325213305,1714590644340,-1957.91,0.00052876,120]
[325213306,1714590644351,-500.0,0.00052876,120]
[325213307,1714590644361,-500.0,0.00052876,120]
[325213308,1714590644371,-1098.11,0.00052876,120]
[325213309,1714590644380,-500.0,0.00052876,120]
[325213310,1714590644390,-2177.83,0.00052876,120]
[325213311,1714590644399,-500.0,0.00052876,120]
[325213312,1714590644408,-500.0,0.00052876,120]
[325213313,1714590644420,-500.0,0.00052876,120]
[325213314,1714590644429,-502.1300506,0.00052876,120]
[325213315,1714590644440,-500.0,0.00052876,120]
[325213316,1714590644450,-500.0,0.00052876,120]
[325213317,1714590644459,-500.0,0.00052876,120]
[325213318,1714590644469,-500.0,0.00052876,120]
[325213319,1714590644478,-640.21,0.00052876,120]
[325213320,1714590644487,-500.0,0.00052876,120]
[325213321,1714590644496,-2885.13,0.00052876,120]
[325213322,1714590644506,-500.0,0.00052876,120]
[325213323,1714590644516,-500.0,0.00052876,120]
[325213324,1714590644525,-500.0,0.00052876,120]
[325213325,1714590644536,-500.0,0.00052876,30]
[325213326,1714590644546,-543.43716989,0.00052876,120]
[325213327,1714590644555,-1000.0,0.00053,53]
[325213328,1714590644565,-201.04784031,0.00053,2]
[325213329,1714590644575,-493.0,0.00053033,120]
[325213330,1714590644585,-151.0,0.00053123,120]
[325213331,1714590644595,-201.04784031,0.00053162,2]
[325213332,1714590644604,-588.0,0.000532,30]
[325213333,1714590644614,-201.04784031,0.00053324,2]
[325213334,1714590644623,-189.06464916,0.00053324,2]
[325213335,1714590644632,-500.0,0.00053424,120]
[325213336,1714590644642,-500.0,0.00053424,120]
[325213337,1714590644651,-500.0,0.00053424,120]
[325213338,1714590644660,-500.0,0.00053424,120]
[325213339,1714590644669,-500.0,0.00053424,120]
[325213340,1714590644678,-500.0,0.00053424,120]
[325213341,1714590644687,-591.11,0.00053424,120]
[325213342,1714590644697,-500.0,0.00053424,120]
[325213343,1714590644706,-525.92,0.00053424,120]
[325213344,1714590644715,-500.0,0.00053424,120]
[325213345,1714590644724,-500.0,0.00053424,120]
[325213346,1714590644733,-500.0,0.00053424,120]
[325213347,1714590644742,-500.0,0.00053424,120]
[325213348,1714590644752,-500.0,0.00053424,120]
[325213349,1714590644761,-500.0,0.00053424,120]
[325213350,1714590644770,-500.0,0.00053424,120]
[325213352,1714590644780,-640.68999067,0.00053424,120]
[325213353,1714590644789,-500.0,0.00053424,120]
[325213354,1714590644799,-500.0,0.00053424,120]
[325213355,1714590644808,-500.0,0.00053424,60]
[325213356,1714590644817,-500.0,0.00053424,120]
[325213357,1714590644827,-536.52,0.00053424,120]
[325213358,1714590644839,-500.0,0.00053424,120]
[325213359,1714590644849,-500.0,0.00053424,120]
[325213360,1714590644858,-500.0,0.00053424,120]
[325213361,1714590644868,-500.0,0.00053424,120]
[325213362,1714590644878,-823.13,0.00053424,120]
[325213363,1714590644888,-500.0,0.00053424,120]
[325213364,1714590644897,-500.0,0.00053424,120]
[325213365,1714590644907,-500.0,0.00053424,120]
[325213366,1714590644916,-970.01,0.00053424,120]
[325213367,1714590644925,-500.0,0.00053424,120]
[325213368,1714590644936,-830.41,0.00053424,120]
[325213369,1714590644945,-500.0,0.00053424,120]
[325213370,1714590644955,-1000.6,0.00053424,120]
[325213371,1714590644965,-500.0,0.00053424,120]
[325213372,1714590644975,-516.07,0.00053424,120]
[325213373,1714590644984,-500.0,0.00053424,120]
[325213374,1714590644993,-508.08,0.00053424,120]
[325213375,1714590645003,-500.0,0.00053424,120]
[325213376,1714590645013,-500.0,0.00053424,120]
[325213377,1714590645022,-500.0,0.00053424,120]
[325213378,1714590645031,-500.0,0.00053424,120]
[325213379,1714590645041,-500.0,0.00053424,120]
[325213380,1714590645051,-500.0,0.00053424,120]
[325213381,1714590645061,-500.0,0.00053424,120]
[325213382,1714590645070,-500.0,0.00053424,120]
[325213383,1714590645079,-500.0,0.00053424,120]
[325213384,1714590645092,-595.6,0.00053424,120]
[325213385,1714590645101,-500.0,0.00053424,120]
[325213386,1714590645112,-770.87,0.00053424,120]
[325213387,1714590645121,-570.28,0.00053424,120]
[325213388,1714590645131,-500.0,0.00053424,120]
[325213389,1714590645141,-500.0,0.00053424,120]
[325213390,1714590645150,-500.0,0.00053424,120]
[325213391,1714590645160,-500.0,0.00053424,120]
[325213392,1714590645170,-500.0,0.00053424,120]
[325213393,1714590645180,-500.0,0.00053424,120]
[325213394,1714590645189,-500.0,0.00053424,120]
[325213395,1714590645199,-629.86,0.00053424,120]
[325213396,1714590645209,-500.0,0.00053424,120]
[325213397,1714590645219,-500.0,0.00053424,120]
[325213398,1714590645230,-500.0,0.00053424,120]
[325213399,1714590645239,-500.0,0.00053424,120]
[325213400,1714590645249,-646.53,0.00053424,120]
[325213401,1714590645259,-500.0,0.00053424,120]
[325213402,1714590645268,-500.0,0.00053424,120]
[325213403,1714590645278,-1000.0,0.00053424,120]
[325213404,1714590645287,-797.48,0.00053424,120]
[325213405,1714590645297,-606.45664126,0.00053424,2]
[325213406,1714590645307,-997.55,0.00053424,120]
[325213407,1714590645316,-782.72,0.00053424,120]
[325213408,1714590645327,-521.34,0.00053424,120]
[325213409,1714590645341,-500.0,0.00053424,120]
[325213410,1714590645350,-844.52,0.00053424,120]
[325213411,1714590645360,-500.0,0.00053424,120]
[325213412,1714590645371,-500.0,0.00053424,120]
[325213413,1714590645380,-500.0,0.00053424,120]
[325213414,1714590645390,-680.19,0.00053424,120]
[325213415,1714590645400,-549.0,0.00053424,120]
[325213416,1714590645410,-500.0,0.00053424,120]
[325213417,1714590645421,-500.0,0.00053424,120]
[325213418,1714590645430,-500.0,0.00053424,120]
[325213419,1714590645440,-806.65,0.00053424,120]
[325213420,1714590645449,-500.0,0.00053424,120]
[325213421,1714590645458,-500.0,0.00053424,120]
[325213422,1714590645468,-897.46,0.00053424,120]
[325213423,1714590645477,-500.0,0.00053424,120]
[325213424,1714590645486,-500.0,0.00053424,120]
[325213425,1714590645496,-692.14,0.00053424,120]
[325213426,1714590645506,-500.0,0.00053424,120]
[325213427,1714590645515,-500.0,0.00053424,120]
[325213428,1714590645524,-500.0,0.00053424,120]
[325213429,1714590645533,-500.0,0.00053424,120]
[325213430,1714590645543,-500.0,0.00053424,120]
[325213431,1714590645552,-239.75814575,0.00053424,120]
[325213432,1714590645562,-500.0,0.00053424,120]
[325213433,1714590645571,-929.98,0.00053424,120]
[325213434,1714590645584,-683.54,0.00053424,120]
[325213435,1714590645594,-500.0,0.00053424,120]
[325213436,1714590645603,-500.0,0.00053424,2]
[325213437,1714590645612,-161.15634553,0.00053424,120]
[325213438,1714590645621,-500.0,0.00053424,120]
[325213439,1714590645632,-223.82861418,0.00053424,120]
[325213440,1714590645641,-500.0,0.00053424,120]
[325213441,1714590645651,-1059.26,0.00053424,120]
[325213442,1714590645660,-500.0,0.00053424,120]
[325213443,1714590645670,-500.0,0.00053424,120]
[325213444,1714590645680,-500.0,0.00053424,120]
[325213445,1714590645689,-500.0,0.00053424,120]
[325213446,1714590645699,-500.0,0.00053424,120]
[325213447,1714590645709,-500.0,0.00053424,120]
[325213448,1714590645718,-500.0,0.00053424,2]
[325213449,1714590645728,-934.33,0.00053424,120]
[325213450,1714590645738,-500.0,0.00053424,120]
[325213451,1714590645747,-500.0,0.00053424,120]
[325213452,1714590645757,-594.09579856,0.00053424,120]
[325213453,1714590645766,-500.0,0.00053424,120]
[325213454,1714590645775,-500.0,0.00053424,120]
[325213455,1714590645784,-500.0,0.00053424,120]
[325213456,1714590645794,-500.0,0.00053424,120]
[325213457,1714590645804,-1745.21,0.00053424,120]
[325213458,1714590645814,-500.0,0.00053424,120]
[325213459,1714590645824,-271.99277122,0.00053424,120]
[325213460,1714590645835,-500.0,0.00053424,120]
[325213461,1714590645845,-500.0,0.00053424,120]
[325213462,1714590645855,-500.0,0.00053424,120]
[325213463,1714590645864,-500.0,0.00053424,120]
[325213464,1714590645874,-501.01164287,0.00053424,120]
[325213469,1714590646025,-778.84,0.00053424,120]
[325213471,1714590646035,-500.0,0.00053424,120]
[325213473,1714590646044,-500.0,0.00053424,120]
[325213475,1714590646054,-500.0,0.00053424,120]
[325213477,1714590646064,-500.0,0.00053424,120]
[325213479,1714590646073,-588.76,0.00053424,120]
[325213480,1714590646084,-500.0,0.00053424,120]
[325213481,1714590646094,-500.0,0.00053424,120]
[325213483,1714590646103,-500.0,0.00053424,120]
[325213485,1714590646113,-500.0,0.00053424,120]
[325213487,1714590646123,-558.34,0.00053424,120]
[325213489,1714590646132,-500.0,0.00053424,120]
[325213491,1714590646142,-500.0,0.00053424,120]
[325213493,1714590646151,-500.0,0.00053424,120]
[325213495,1714590646160,-500.0,0.00053424,120]
[325213497,1714590646169,-500.0,0.00053424,120]
[325213500,1714590646179,-500.0,0.00053424,120]
[325213503,1714590646188,-500.0,0.00053424,120]
[325213506,1714590646198,-500.0,0.00053424,120]
[325213508,1714590646207,-632.61,0.00053424,120]
[325213510,1714590646219,-500.0,0.00053424,120]
[325213511,1714590646229,-500.0,0.00053424,120]
[325213513,1714590646238,-859.28,0.00053424,120]
[325213515,1714590646248,-500.0,0.00053424,120]
[325213517,1714590646257,-500.0,0.00053424,120]
[325213519,1714590646266,-500.0,0.00053424,120]
[325213520,1714590646276,-501.17552555,0.00053424,120]
[325213521,1714590646286,-500.0,0.00053424,120]
[325213522,1714590646295,-1048.71,0.00053424,120]
[325213523,1714590646305,-500.0,0.00053424,120]
[325213524,1714590646314,-1038.61,0.00053424,120]
[325213525,1714590646324,-500.0,0.00053424,120]
[325213526,1714590646336,-500.0,0.00053424,120]
[325213527,1714590646349,-500.0,0.00053424,120]
[325213529,1714590646358,-300.0,0.00053424,2]
[325213531,1714590646368,-728.02,0.00053424,120]
[325213533,1714590646378,-500.0,0.00053424,120]
[325213535,1714590646386,-500.0,0.00053424,120]
[325213537,1714590646396,-500.0,0.00053424,120]
[325213539,1714590646405,-500.0,0.00053424,120]
[325213540,1714590646416,-500.0,0.00053424,120]
[325213541,1714590646426,-500.0,0.00053424,120]
[325213543,1714590646436,-500.0,0.00053424,120]
[325213545,1714590646445,-500.0,0.00053424,120]
[325213546,1714590646455,-1022.32,0.00053424,120]
[325213547,1714590646466,-500.0,0.00053424,120]
[325213548,1714590646475,-294.99521183,0.00053424,120]
[325213549,1714590646485,-1486.05,0.00053424,120]
[325213550,1714590646494,-500.0,0.00053424,120]
[325213551,1714590646504,-500.89811379,0.00053424,120]
[325213552,1714590646514,-500.0,0.00053424,120]
[325213553,1714590646523,-945.1,0.00053424,120]
[325213554,1714590646532,-500.7833895,0.00053424,120]